fUSD/lending_fUSD_20250521
["ID","MTS","AMOUNT","RATE_DAILY","PERIOD"]
[361864175,1747852254535,-569.77,0.00038356,30]
[361864176,1747852254544,-282.66930817,0.00038356,30]
[361864177,1747852254554,-420.0,0.00038356,30]
[361864178,1747852254564,-151.0,0.00038356,7]
[361864179,1747852254573,-420.0,0.00038356,30]
[361864180,1747852254583,-667.66,0.00038356,30]
[361864181,1747852254593,-420.0,0.00038356,30]
[361864182,1747852254605,-420.0,0.00038356,30]
[361864183,1747852254615,-420.0,0.00038356,30]
[361864184,1747852254626,-420.0,0.00038356,30]
[361864185,1747852254636,-151.0,0.00038356,7]
[361864186,1747852254646,-420.0,0.00038356,30]
[361864187,1747852254656,-625.17,0.00038356,30]
[361864188,1747852254666,-420.0,0.00038356,30]
[361864189,1747852254675,-420.0,0.00038356,30]
[361864190,1747852254685,-420.0,0.00038356,30]
[361864191,1747852254694,-1225.63,0.00038356,30]
[361864192,1747852254704,-151.0,0.00038356,7]
[361864193,1747852254713,-609.66,0.00038356,30]
[361864194,1747852254723,-420.0,0.00038356,30]
[361864195,1747852254733,-420.0,0.00038356,30]
[361864196,1747852254742,-629.07,0.00038356,30]
[361864197,1747852254753,-420.0,0.00038356,30]
[361864198,1747852254763,-420.0,0.00038356,30]
[361864199,1747852254772,-420.0,0.00038356,30]
[361864200,1747852254782,-420.0,0.00038356,30]
[361864201,1747852254792,-420.0,0.00038356,30]
[361864202,1747852254801,-420.0,0.00038356,30]
[361864203,1747852254811,-624.61,0.00038356,30]
[361864204,1747852254821,-541.83,0.00038356,30]
[361864205,1747852254831,-803.08,0.00038356,30]
[361864206,1747852254840,-420.0,0.00038356,30]
[361864207,1747852254851,-420.0,0.00038356,30]
[361864208,1747852254861,-897.13,0.00038356,30]
[361864209,1747852254870,-594.77,0.00038356,30]
[361864210,1747852254881,-568.0,0.00038356,30]
[361864211,1747852254891,-420.0,0.00038356,30]
[361864212,1747852254900,-420.0,0.00038356,30]
[361864213,1747852254910,-151.0,0.00038356,7]
[361864214,1747852254919,-420.0,0.00038356,30]
[361864215,1747852254929,-151.213998,0.00038356,7]
[361864216,1747852254939,-924.57,0.00038356,30]
[361864217,1747852254948,-1168.27,0.00038356,30]
[361864218,1747852254958,-420.0,0.00038356,30]
[361864219,1747852254967,-151.0,0.00038356,7]
[361864220,1747852254977,-431.29629799,0.00038356,30]
[361864221,1747852254987,-851.12,0.00038356,30]
[361864222,1747852254998,-420.0,0.00038356,30]
[361864223,1747852255012,-420.0,0.00038356,30]
[361864224,1747852255022,-420.0,0.00038356,30]
[361864225,1747852255032,-599.1,0.00038356,30]
[361864226,1747852255042,-420.0,0.00038356,30]
[361864227,1747852255052,-420.0,0.00038356,30]
[361864228,1747852255061,-671.39,0.00038356,30]
[361864229,1747852255071,-1012.55,0.00038356,30]
[361864230,1747852255082,-420.0,0.00038356,30]
[361864231,1747852255093,-420.0,0.00038356,30]
[361864232,1747852255105,-420.0,0.00038356,30]
[361864233,1747852255114,-420.0,0.00038356,30]
[361864234,1747852255124,-420.0,0.00038356,30]
[361864235,1747852255135,-151.0,0.00038356,7]
[361864236,1747852255145,-151.0,0.00038356,7]
[361864237,1747852255155,-1613.58,0.00038356,30]
[361864238,1747852255165,-420.0,0.00038356,30]
[361864239,1747852255175,-607.15,0.00038356,30]
[361864240,1747852255185,-480.07,0.00038356,30]
[361864241,1747852255195,-430.84,0.00038356,30]
[361864242,1747852255205,-420.0,0.00038356,30]
[361864243,1747852255215,-323.61873155,0.00038356,30]
[361864244,1747852255225,-420.0,0.00038356,30]
[361864245,1747852255235,-420.0,0.00038356,30]
[361864246,1747852255245,-851.6,0.00038356,30]
[361864247,1747852255255,-420.0,0.00038356,30]
[361864248,1747852255265,-420.0,0.00038356,30]
[361864249,1747852255274,-151.0,0.00038356,7]
[361864250,1747852255284,-1451.69,0.00038356,30]
[361864251,1747852255294,-420.0,0.00038356,30]
[361864252,1747852255304,-420.0,0.00038356,30]
[361864253,1747852255313,-292.91571942,0.00038356,30]
[361864254,1747852255323,-420.0,0.00038356,30]
[361864255,1747852255333,-151.0,0.00038356,7]
[361864256,1747852255343,-452.66,0.00038356,30]
[361864257,1747852255358,-993.46,0.00038356,30]
[361864258,1747852255369,-151.0,0.00038356,7]
[361864259,1747852255380,-151.0,0.00038356,7]
[361864260,1747852255391,-420.0,0.00038356,30]
[361864261,1747852255401,-420.0,0.00038356,30]
[361864262,1747852255411,-807.74,0.00038356,30]
[361864263,1747852255422,-458.49,0.00038356,30]
[361864264,1747852255432,-652.14,0.00038356,30]
[361864265,1747852255442,-420.0,0.00038356,14]
[361864266,1747852255452,-420.0,0.00038356,30]
[361864267,1747852255462,-400.69583114,0.00038356,30]
[361864268,1747852255472,-940.39,0.00038356,30]
[361864269,1747852255482,-521.65,0.00038356,30]
[361864270,1747852255492,-420.0,0.00038356,30]
[361864271,1747852255502,-420.0,0.00038356,30]
[361864272,1747852255512,-420.0,0.00038356,30]
[361864273,1747852255522,-488.31608757,0.00038356,30]
[361864274,1747852255532,-475.10609528,0.00038356,30]
[361864275,1747852255542,-930.73,0.00038356,30]
[361864276,1747852255552,-420.0,0.00038356,30]
[361864277,1747852255562,-420.0,0.00038356,30]
[361864278,1747852255572,-420.0,0.00038356,30]
[361864279,1747852255582,-473.56,0.00038356,30]
[361864280,1747852255593,-151.0,0.00038356,7]
[361864281,1747852255824,-420.0,0.00038356,30]
[361864282,1747852255835,-420.0,0.00038356,30]
[361864283,1747852255845,-151.0,0.00038356,7]
[361864284,1747852255858,-151.0,0.00038356,7]
[361864285,1747852255868,-352.26959435,0.00038356,30]
[361864286,1747852255879,-151.0,0.00038356,7]
[361864287,1747852255889,-545.15,0.00038356,30]
[361864288,1747852255898,-420.0,0.00038356,30]
[361864289,1747852255908,-420.0,0.00038356,30]
[361864290,1747852255918,-420.0,0.00038356,30]
[361864291,1747852255928,-579.59,0.00038356,30]
[361864292,1747852255939,-542.73,0.00038356,30]
[361864293,1747852255948,-420.0,0.00038356,30]
[361864294,1747852255958,-1074.61,0.00038356,30]
[361864295,1747852255968,-420.0,0.00038356,30]
[361864296,1747852255978,-556.95,0.00038356,30]
[361864297,1747852255988,-420.0,0.00038356,30]
[361864298,1747852256002,-420.0,0.00038356,30]
[361864299,1747852256013,-169.96506094,0.00038356,30]
[361864300,1747852256023,-716.67,0.00038356,30]
[361864301,1747852256033,-420.0,0.00038356,30]
[361864302,1747852256043,-1316.25,0.00038356,30]
[361864303,1747852256052,-420.0,0.00038356,30]
[361864304,1747852256062,-511.79,0.00038356,30]
[361864305,1747852256073,-1323.94,0.00038356,30]
[361864306,1747852256083,-420.0,0.00038356,30]
[361864307,1747852256093,-420.0,0.00038356,30]
[361864308,1747852256105,-420.0,0.00038356,30]
[361864309,1747852256115,-420.0,0.00038356,30]
[361864310,1747852256125,-420.0,0.00038356,30]
[361864311,1747852256135,-476.43,0.00038356,30]
[361864312,1747852256145,-151.0,0.00038356,7]
[361864313,1747852256155,-151.0,0.00038356,7]
[361864314,1747852256166,-420.0,0.00038356,30]
[361864315,1747852256176,-420.0,0.00038356,30]
[361864316,1747852256186,-501.88,0.00038356,30]
[361864317,1747852256196,-420.0,0.00038356,30]
[361864318,1747852256206,-970.46,0.00038356,30]
[361864319,1747852256215,-298.67830662,0.00038356,30]
[361864320,1747852256226,-420.0,0.00038356,30]
[361864321,1747852256235,-636.42,0.00038356,30]
[361864322,1747852256245,-420.0,0.00038356,30]
[361864323,1747852256255,-422.38,0.00038356,30]
[361864324,1747852256265,-575.08,0.00038356,30]
[361864325,1747852256274,-1043.49,0.00038356,30]
[361864326,1747852256284,-365.18093238,0.00038356,30]
[361864327,1747852256294,-516.96,0.00038356,30]
[361864328,1747852256303,-420.0,0.00038356,30]
[361864329,1747852256313,-151.0,0.00038356,7]
[361864330,1747852256322,-152.506663,0.00038356,7]
[361864331,1747852256332,-420.0,0.00038356,30]
[361864332,1747852256342,-596.57,0.00038356,30]
[361864333,1747852256354,-546.75,0.00038356,30]
[361864334,1747852256364,-420.0,0.00038356,30]
[361864335,1747852256374,-420.0,0.00038356,30]
[361864336,1747852256384,-1116.24,0.00038356,30]
[361864337,1747852256394,-420.0,0.00038356,30]
[361864338,1747852256404,-420.0,0.00038356,30]
[361864339,1747852256413,-420.0,0.00038356,30]
[361864340,1747852256423,-420.0,0.00038356,30]
[361864341,1747852256432,-420.0,0.00038356,30]
[361864342,1747852256442,-420.0,0.00038356,30]
[361864343,1747852256451,-420.0,0.00038356,30]
[361864344,1747852256461,-420.0,0.00038356,30]
[361864345,1747852256471,-420.0,0.00038356,30]
[361864346,1747852256480,-420.0,0.00038356,30]
[361864347,1747852256490,-420.0,0.00038356,30]
[361864348,1747852256500,-2041.03,0.00038356,30]
[361864349,1747852256510,-400.26004902,0.00038356,30]
[361864350,1747852256520,-770.51,0.00038356,30]
[361864351,1747852256530,-420.0,0.00038356,30]
[361864352,1747852256539,-420.0,0.00038356,30]
[361864353,1747852256549,-463.91,0.00038356,30]
[361864354,1747852256559,-420.0,0.00038356,30]
[361864355,1747852256568,-420.0,0.00038356,30]
[361864356,1747852256578,-440.31,0.00038356,30]
[361864357,1747852256587,-579.78,0.00038356,30]
[361864358,1747852256599,-1379.65,0.00038356,30]
[361864359,1747852256609,-442.67,0.00038356,30]
[361864360,1747852256618,-185.717381,0.00038356,7]
[361864361,1747852256628,-420.0,0.00038356,30]
[361864362,1747852256638,-174.62853237,0.00038356,30]
[361864363,1747852256648,-420.0,0.00038356,30]
[361864364,1747852256658,-151.0,0.00038356,7]
[361864365,1747852256668,-420.0,0.00038356,30]
[361864366,1747852256677,-151.0,0.00038356,7]
[361864367,1747852256687,-420.0,0.00038356,30]
[361864368,1747852256698,-712.53,0.00038356,30]
[361864369,1747852256708,-420.0,0.00038356,30]
[361864370,1747852256718,-420.0,0.00038356,30]
[361864371,1747852256730,-420.0,0.00038356,30]
[361864372,1747852256740,-787.7,0.00038356,30]
[361864373,1747852256749,-420.0,0.00038356,30]
[361864374,1747852256759,-482.23,0.00038356,30]
[361864375,1747852256769,-151.0,0.00038356,7]
[361864376,1747852256779,-420.0,0.00038356,30]
[361864377,1747852256790,-151.0,0.00038356,7]
[361864378,1747852256800,-1544.61,0.00038356,30]
[361864379,1747852256810,-891.23,0.00038356,30]
[361864380,1747852256820,-513.20290702,0.00038356,30]
[361864381,1747852256831,-420.0,0.00038356,30]
[361864382,1747852256842,-420.0,0.00038356,30]
[361864383,1747852256852,-151.0,0.00038356,7]
[361864384,1747852256862,-420.0,0.00038356,30]
[361864385,1747852256873,-199.97017702,0.00038356,30]
[361864386,1747852256883,-420.0,0.00038356,30]
[361864387,1747852256893,-420.0,0.00038356,30]
[361864388,1747852256904,-420.0,0.00038356,30]
[361864389,1747852256914,-1521.24,0.00038356,30]
[361864390,1747852256924,-420.0,0.00038356,30]
[361864391,1747852256934,-420.0,0.00038356,30]
[361864392,1747852256944,-720.144781,0.00038356,7]
[361864393,1747852256954,-720.144781,0.00038356,7]
[361864394,1747852256964,-420.0,0.00038356,30]
[361864395,1747852256974,-1587.36,0.00038356,30]
[361864396,1747852256984,-151.0,0.00038356,7]
[361864397,1747852256994,-420.0,0.00038356,30]
[361864398,1747852257006,-678.04,0.00038356,30]
[361864399,1747852257018,-151.0,0.00038356,7]
[361864400,1747852257028,-247.0956032,0.00038356,30]
[361864401,1747852257038,-420.0,0.00038356,30]
[361864402,1747852257048,-1168.31,0.00038356,30]
[361864403,1747852257060,-420.0,0.00038356,30]
[361864404,1747852257069,-420.0,0.00038356,30]
[361864405,1747852257079,-431.22,0.00038356,30]
[361864406,1747852257090,-425.85927588,0.00038356,30]
[361864407,1747852257101,-400.43281611,0.00038356,30]
[361864408,1747852257111,-720.144781,0.00038356,7]
[361864409,1747852257121,-720.144781,0.00038356,7]
[361864410,1747852257131,-1264.38,0.00038356,30]
[361864411,1747852257141,-836.09,0.00038356,30]
[361864412,1747852257151,-710.88,0.00038356,30]
[361864413,1747852257162,-498.41,0.00038356,30]
[361864414,1747852257171,-420.0,0.00038356,30]
[361864415,1747852257181,-638.37,0.00038356,30]
[361864416,1747852257191,-420.0,0.00038356,30]
[361864417,1747852257201,-905.81,0.00038356,30]
[361864418,1747852257211,-523.08,0.00038356,30]
[361864419,1747852257220,-1236.73,0.00038356,30]
[361864420,1747852257230,-420.0,0.00038356,30]
[361864421,1747852257240,-420.0,0.00038356,30]
[361864422,1747852257250,-420.0,0.00038356,30]
[361864423,1747852257260,-420.0,0.00038356,30]
[361864424,1747852257270,-420.0,0.00038356,30]
[361864425,1747852257280,-986.1,0.00038356,30]
[361864426,1747852257289,-2835.03,0.00038356,30]
[361864427,1747852257300,-420.0,0.00038356,30]
[361864428,1747852257309,-420.0,0.00038356,30]
[361864429,1747852257319,-447.46,0.00038356,30]
[361864430,1747852257328,-501.87,0.00038356,30]
[361864431,1747852257338,-420.0,0.00038356,30]
[361864432,1747852257349,-1466.49,0.00038356,30]
[361864433,1747852257359,-420.0,0.00038356,30]
[361864434,1747852257369,-420.0,0.00038356,30]
[361864435,1747852257380,-420.0,0.00038356,30]
[361864436,1747852257389,-420.0,0.00038356,30]
[361864437,1747852257398,-481.7,0.00038356,30]
[361864438,1747852257408,-1049.84,0.00038356,30]
[361864439,1747852257417,-822.84,0.00038356,30]
[361864440,1747852257427,-718.57,0.00038356,30]
[361864441,1747852257437,-420.0,0.00038356,30]
[361864442,1747852257447,-420.0,0.00038356,30]
[361864443,1747852257457,-420.0,0.00038356,30]
[361864444,1747852257467,-420.0,0.00038356,30]
[361864445,1747852257477,-420.0,0.00038356,30]
[361864446,1747852257487,-420.0,0.00038356,30]
[361864447,1747852257497,-528.46,0.00038356,30]
[361864448,1747852257508,-420.0,0.00038356,30]
[361864449,1747852257518,-420.0,0.00038356,30]
[361864450,1747852257528,-400.6492932,0.00038356,30]
[361864451,1747852257538,-420.0,0.00038356,30]
[361864452,1747852257548,-1460.3,0.00038356,30]
[361864453,1747852257558,-637.39,0.00038356,30]
[361864454,1747852257567,-509.05,0.00038356,30]
[361864455,1747852257577,-464.92,0.00038356,30]
[361864456,1747852257587,-420.0,0.00038356,30]
[361864457,1747852257597,-420.0,0.00038356,30]
[361864458,1747852257608,-602.93,0.00038356,30]
[361864459,1747852257618,-151.0,0.00038356,7]
[361864460,1747852257628,-654.56,0.00038356,30]
[361864461,1747852257638,-151.0,0.00038356,7]
[361864462,1747852257648,-665.75,0.00038356,30]
[361864463,1747852257659,-1860.95,0.00038356,30]
[361864464,1747852257668,-420.0,0.00038356,30]
[361864465,1747852257678,-473.7706638,0.00038356,30]
[361864466,1747852257694,-1515.05,0.00038356,30]
[361864467,1747852257705,-400.0,0.00038356,30]
[361864468,1747852257719,-420.0,0.00038356,30]
[361864469,1747852257731,-420.0,0.00038356,30]
[361864470,1747852257740,-420.0,0.00038356,30]
[361864471,1747852257750,-2096.4,0.00038356,30]
[361864472,1747852257759,-151.0,0.00038356,7]
[361864473,1747852257769,-151.0,0.00038356,7]
[361864474,1747852257779,-1182.51,0.00038356,30]
[361864475,1747852257788,-638.15,0.00038356,30]
[361864476,1747852257799,-420.0,0.00038356,30]
[361864477,1747852257808,-420.0,0.00038356,30]
[361864478,1747852257818,-1149.81,0.00038356,30]
[361864479,1747852257828,-420.0,0.00038356,30]
[361864480,1747852257838,-625.69,0.00038356,30]
[361864481,1747852257847,-1219.94,0.00038356,30]
[361864482,1747852257859,-420.0,0.00038356,30]
[361864483,1747852257869,-420.0,0.00038356,30]
[361864484,1747852257879,-420.0,0.00038356,30]
[361864485,1747852257888,-151.529439,0.00038356,7]
[361864486,1747852257898,-915.15,0.00038356,30]
[361864487,1747852257908,-697.76,0.00038356,30]
[361864488,1747852257918,-420.0,0.00038356,30]
[361864489,1747852257928,-420.0,0.00038356,30]
[361864490,1747852257938,-1580.87,0.00038356,30]
[361864491,1747852257948,-1884.88,0.00038356,30]
[361864492,1747852257958,-420.0,0.00038356,30]
[361864493,1747852257968,-1597.67,0.00038356,30]
[361864494,1747852257978,-420.0,0.00038356,30]
[361864495,1747852257988,-420.0,0.00038356,30]
[361864496,1747852257998,-420.0,0.00038356,30]
[361864497,1747852258010,-151.806109,0.00038356,7]
[361864498,1747852258020,-551.78,0.00038356,30]
[361864499,1747852258031,-1323.36,0.00038356,30]
[361864500,1747852258042,-487.73,0.00038356,30]
[361864501,1747852258052,-420.0,0.00038356,30]
[361864502,1747852258062,-446.88,0.00038356,30]
[361864503,1747852258072,-1446.26,0.00038356,30]
[361864504,1747852258083,-420.0,0.00038356,30]
[361864505,1747852258093,-151.0,0.00038356,7]
[361864506,1747852258103,-469.81,0.00038356,30]
[361864507,1747852258113,-420.0,0.00038356,30]
[361864508,1747852258122,-420.0,0.00038356,30]
[361864509,1747852258132,-2473.04,0.00038356,30]
[361864510,1747852258142,-420.0,0.00038356,7]
[361864511,1747852258151,-420.0,0.00038356,30]
[361864512,1747852258161,-1625.5,0.00038356,30]
[361864513,1747852258171,-404.46250388,0.00038356,30]
[361864514,1747852258181,-420.0,0.00038356,30]
[361864515,1747852258191,-860.18,0.00038356,30]
[361864516,1747852258200,-510.05186469,0.00038356,30]
[361864517,1747852258211,-1658.38,0.00038356,30]
[361864518,1747852258221,-452.43184355,0.00038356,30]
[361864519,1747852258230,-420.0,0.00038356,30]
[361864520,1747852258240,-420.0,0.00038356,30]
[361864521,1747852258250,-420.0,0.00038356,30]
[361864522,1747852258260,-937.38,0.00038356,30]
[361864523,1747852258271,-1107.67,0.00038356,30]
[361864524,1747852258281,-489.37,0.00038356,30]
[361864525,1747852258290,-420.0,0.00038356,2]
[361864526,1747852258300,-151.0,0.00038356,7]
[361864527,1747852258309,-611.64,0.00038356,30]
[361864528,1747852258426,-151.0,0.00038356,7]
[361864529,1747852258437,-1488.47,0.00038356,30]
[361864530,1747852258447,-420.0,0.00038356,30]
[361864531,1747852258458,-447.32,0.00038356,30]
[361864532,1747852258467,-420.0,0.00038356,30]
[361864533,1747852258477,-420.0,0.00038356,30]
[361864534,1747852258487,-2023.27,0.00038356,30]
[361864535,1747852258496,-1010.87,0.00038356,30]
[361864536,1747852258506,-420.0,0.00038356,30]
[361864537,1747852258516,-420.0,0.00038356,30]
[361864538,1747852258525,-420.0,0.00038356,30]
[361864539,1747852258535,-420.0,0.00038356,30]
[361864540,1747852258545,-525.3,0.00038356,30]
[361864541,1747852258555,-420.0,0.00038356,30]
[361864542,1747852258565,-420.0,0.00038356,30]
[361864543,1747852258574,-420.0,0.00038356,30]
[361864544,1747852258584,-420.0,0.00038356,30]
[361864545,1747852258593,-151.0,0.00038356,7]
[361864546,1747852258604,-151.0,0.00038356,7]
[361864547,1747852258614,-420.0,0.00038356,30]
[361864548,1747852258623,-420.0,0.00038356,30]
[361864549,1747852258633,-589.02,0.00038356,30]
[361864550,1747852258643,-420.0,0.00038356,30]
[361864551,1747852258653,-420.0,0.00038356,30]
[361864552,1747852258663,-792.89,0.00038356,30]
[361864553,1747852258672,-792.89,0.00038356,30]
[361864554,1747852258681,-584.07,0.00038356,30]
[361864555,1747852258691,-420.0,0.00038356,30]
[361864556,1747852258701,-792.89,0.00038356,30]
[361864557,1747852258711,-1722.59,0.00038356,30]
[361864558,1747852258720,-420.0,0.00038356,30]
[361864559,1747852258730,-792.89,0.00038356,30]
[361864560,1747852258740,-792.89,0.00038356,30]
[361864561,1747852258749,-792.89,0.00038356,30]
[361864562,1747852258759,-792.89,0.00038356,30]
[361864563,1747852258768,-792.89,0.00038356,30]
[361864564,1747852258778,-151.0,0.00038356,7]
[361864565,1747852258788,-792.89,0.00038356,30]
[361864566,1747852258798,-195.025458,0.00038356,7]
[361864567,1747852258807,-420.0,0.00038356,30]
[361864568,1747852258817,-792.89,0.00038356,30]
[361864569,1747852258827,-792.89,0.00038356,30]
[361864570,1747852258836,-792.89,0.00038356,30]
[361864571,1747852258846,-792.89,0.00038356,30]
[361864572,1747852258856,-792.89,0.00038356,30]
[361864573,1747852258866,-420.0,0.00038356,30]
[361864574,1747852258875,-792.89,0.00038356,30]
[361864575,1747852258884,-792.89,0.00038356,30]
[361864576,1747852258894,-792.89,0.00038356,30]
[361864577,1747852258903,-792.89,0.00038356,30]
[361864578,1747852258913,-151.0,0.00038356,7]
[361864579,1747852258923,-792.89,0.00038356,30]
[361864580,1747852258933,-151.0,0.00038356,7]
[361864581,1747852258943,-792.89,0.00038356,30]
[361864582,1747852258953,-792.89,0.00038356,30]
[361864583,1747852258962,-151.0,0.00038356,7]
[361864584,1747852258971,-792.89,0.00038356,30]
[361864585,1747852258980,-420.0,0.00038356,30]
[361864586,1747852258991,-1165.16,0.00038356,30]
[361864587,1747852259004,-788.04,0.00038356,30]
[361864588,1747852259013,-151.856161,0.00038356,7]
[361864589,1747852259023,-792.89,0.00038356,30]
[361864590,1747852259032,-793.09102457,0.00038356,30]
[361864591,1747852259043,-420.0,0.00038356,30]
[361864592,1747852259052,-1203.67,0.00038356,30]
[361864593,1747852259061,-420.0,0.00038356,30]
[361864594,1747852259071,-1961.05,0.00038356,30]
[361864595,1747852259080,-420.0,0.00038356,30]
[361864596,1747852259090,-1654.18,0.00038356,30]
[361864597,1747852259101,-420.0,0.00038356,30]
[361864598,1747852259111,-151.0,0.00038356,7]
[361864599,1747852259121,-420.0,0.00038356,30]
[361864600,1747852259130,-420.0,0.00038356,30]
[361864601,1747852259139,-913.06,0.00038356,30]
[361864602,1747852259148,-420.0,0.00038356,30]
[361864603,1747852259157,-420.0,0.00038356,30]
[361864604,1747852259167,-420.0,0.00038356,30]
[361864605,1747852259176,-664.77,0.00038356,30]
[361864606,1747852259186,-500.0,0.00038356,30]
[361864607,1747852259196,-664.77,0.00038356,30]
[361864608,1747852259205,-420.0,0.00038356,30]
[361864609,1747852259215,-664.77,0.00038356,30]
[361864610,1747852259224,-664.77,0.00038356,30]
[361864611,1747852259234,-420.0,0.00038356,30]
[361864612,1747852259243,-664.77,0.00038356,30]
[361864613,1747852259252,-965.41,0.00038356,30]
[361864614,1747852259261,-664.77,0.00038356,30]
[361864615,1747852259271,-814.27,0.00038356,30]
[361864616,1747852259280,-664.77,0.00038356,30]
[361864617,1747852259290,-664.77,0.00038356,30]
[361864618,1747852259300,-664.77,0.00038356,30]
[361864619,1747852259310,-420.0,0.00038356,30]
[361864620,1747852259320,-1164.32,0.00038356,30]
[361864621,1747852259330,-664.77,0.00038356,30]
[361864622,1747852259340,-664.77,0.00038356,30]
[361864623,1747852259350,-664.77,0.00038356,30]
[361864624,1747852259361,-664.77,0.00038356,30]
[361864625,1747852259370,-420.0,0.00038356,30]
[361864626,1747852259380,-664.77,0.00038356,30]
[361864627,1747852259391,-420.0,0.00038356,30]
[361864628,1747852259405,-664.77,0.00038356,30]
[361864629,1747852259416,-664.77,0.00038356,30]
[361864630,1747852259426,-664.77,0.00038356,30]
[361864631,1747852259436,-628.75,0.00038356,30]
[361864632,1747852259446,-664.77,0.00038356,30]
[361864633,1747852259455,-664.77,0.00038356,30]
[361864634,1747852259465,-664.77,0.00038356,30]
[361864635,1747852259475,-664.77,0.00038356,30]
[361864636,1747852259484,-664.77,0.00038356,30]
[361864637,1747852259494,-664.77,0.00038356,30]
[361864638,1747852259504,-664.95874007,0.00038356,30]
[361864639,1747852259514,-1383.33,0.00038356,30]
[361864640,1747852259524,-722.68,0.00038356,30]
[361864641,1747852259533,-420.0,0.00038356,30]
[361864642,1747852259543,-820.87,0.00038356,30]
[361864643,1747852259554,-420.0,0.00038356,30]
[361864644,1747852259563,-2275.47,0.00038356,30]
[361864645,1747852259573,-475.79,0.00038356,30]
[361864646,1747852259583,-420.0,0.00038356,30]
[361864647,1747852259593,-849.88,0.00038356,30]
[361864648,1747852259603,-1721.95,0.00038356,30]
[361864649,1747852259613,-420.0,0.00038356,30]
[361864650,1747852259623,-420.0,0.00038356,30]
[361864651,1747852259633,-1216.13,0.00038356,30]
[361864652,1747852259643,-427.52847029,0.00038356,30]
[361864653,1747852259653,-420.0,0.00038356,30]
[361864654,1747852259663,-420.0,0.00038356,30]
[361864655,1747852259673,-151.0,0.00038356,7]
[361864656,1747852259683,-704.45,0.00038356,30]
[361864657,1747852259693,-555.67,0.00038356,30]
[361864658,1747852259704,-151.0,0.00038356,7]
[361864659,1747852259714,-151.0,0.00038356,7]
[361864660,1747852259724,-151.0,0.00038356,7]
[361864661,1747852259733,-433.24,0.00038356,30]
[361864662,1747852259744,-420.0,0.00038356,30]
[361864663,1747852259754,-1418.91,0.00038356,30]
[361864664,1747852259764,-635.53,0.00038356,30]
[361864665,1747852259773,-420.0,0.00038356,30]
[361864666,1747852259783,-740.34,0.00038356,30]
[361864667,1747852259793,-420.0,0.00038356,30]
[361864668,1747852259803,-420.0,0.00038356,30]
[361864669,1747852259812,-603.25,0.00038356,30]
[361864670,1747852259822,-504.03,0.00038356,30]
[361864671,1747852259834,-2158.69,0.00038356,30]
[361864672,1747852259845,-420.0,0.00038356,30]
[361864673,1747852259855,-420.0,0.00038356,30]
[361864674,1747852259865,-2018.91,0.00038356,30]